bitfinex/quotes_BTCUSD_20250115
["timestamp","ask_amount","ask_price","bid_price","bid_amount"]
[1736954937384,0.00014942,99792.0,99787.0,0.200426]
[1736954937584,0.00014942,99792.0,99786.0,0.00100203]
[1736954937901,0.00014942,99792.0,99788.0,1.5]
[1736954938252,0.00014942,99792.0,99788.0,1.509]
[1736954938448,0.00857472,99794.0,99788.0,0.009]
[1736954938670,0.00857472,99794.0,99787.0,0.200426]
[1736954939105,0.00857472,99794.0,99786.0,0.00100203]
[1736954939261,0.00857472,99794.0,99784.0,0.200432]
[1736954939464,0.00857472,99794.0,99785.0,0.005]
[1736954939802,0.0783,99793.0,99785.0,0.005]
[1736954940106,0.00857472,99794.0,99786.0,0.009]
[1736954940304,0.00857472,99794.0,99786.0,0.005]
[1736954940872,1.12187515,99800.0,99796.0,0.0363355]
[1736954941079,1.13340375,99800.0,99796.0,0.0363355]
[1736954941497,1.12187515,99800.0,99796.0,0.0363355]
[1736954943563,1.12187515,99800.0,99796.0,0.0433355]
[1736954943764,0.023,99799.0,99796.0,0.0473355]
[1736954944709,0.123,99797.0,99796.0,0.0473355]
[1736954944911,0.22722692,99797.0,99796.0,0.0403355]
[1736954945115,0.023,99797.0,99796.0,0.0483355]
[1736954945348,0.13770545,99797.0,99796.0,0.0483355]
[1736954945551,0.30956139,99797.0,99796.0,0.0443355]
[1736954945786,0.10533447,99797.0,99796.0,0.0483355]
[1736954945949,0.03347853,99797.0,99796.0,0.0483355]
[1736954946183,0.03347853,99797.0,99796.0,0.01595518]
[1736954946383,0.03347853,99797.0,99796.0,0.01195518]
[1736954946542,0.03347853,99797.0,99796.0,0.01395518]
[1736954946742,0.03347853,99797.0,99796.0,0.00595518]
[1736954947142,0.03347853,99797.0,99796.0,0.00895518]
[1736954947373,1.12272845,99800.0,99796.0,0.00595518]
[1736954947546,0.023,99799.0,99796.0,0.00595518]
[1736954947748,0.023,99799.0,99796.0,0.00895518]
[1736954948570,0.0007543,99798.0,99796.0,0.00895518]
[1736954948772,0.023,99799.0,99796.0,0.00895518]
[1736954948975,0.023,99797.0,99796.0,0.00895518]
[1736954949169,0.023,99797.0,99796.0,0.00595518]
[1736954949617,0.023,99797.0,99796.0,0.00395518]
[1736954949944,0.023,99797.0,99796.0,0.00695518]
[1736954950398,0.023,99797.0,99796.0,0.00395518]
[1736954950581,0.12722692,99797.0,99796.0,0.00395518]
[1736954950808,0.09485594,99797.0,99796.0,0.00595518]
[1736954950989,0.09561024,99797.0,99796.0,0.00595518]
[1736954951720,0.29983716,99797.0,99796.0,0.01195518]
[1736954951869,0.29908286,99797.0,99796.0,0.01195518]
[1736954952104,0.52958286,99797.0,99796.0,0.00395518]
[1736954952310,0.52958286,99797.0,99796.0,0.00495518]
[1736954952518,0.52958286,99797.0,99796.0,0.00695518]
[1736954952913,0.52958286,99797.0,99796.0,0.00495518]
[1736954953156,0.52958286,99797.0,99796.0,0.00395518]
[1736954953317,0.52958286,99797.0,99796.0,0.00495518]
[1736954953519,0.52958286,99797.0,99796.0,0.00595518]
[1736954954091,0.52958286,99797.0,99796.0,0.001]
[1736954954301,0.62578994,99783.0,99782.0,0.00014942]
[1736954954432,0.73725686,99783.0,99782.0,0.00014942]
[1736954956579,0.73001686,99783.0,99782.0,0.00114942]
[1736954956784,0.73725686,99783.0,99782.0,0.00114942]
[1736954956999,0.74773711,99783.0,99782.0,0.00114942]
[1736954957204,0.74773711,99783.0,99782.0,0.00294093]
[1736954957834,0.65944745,99783.0,99782.0,0.00294093]
[1736954958052,0.75944745,99783.0,99782.0,0.00294093]
[1736954958703,0.28348025,99783.0,99782.0,0.00294093]
[1736954958910,0.01048025,99783.0,99782.0,0.00294093]
[1736954959762,0.01048025,99783.0,99782.0,0.00194093]
[1736954960402,0.01048025,99783.0,99782.0,0.1871699]
[1736954960614,0.01048025,99783.0,99782.0,0.21931396]
[1736954960840,0.01048025,99783.0,99782.0,0.21831191]
[1736954961036,0.01157172,99788.0,99782.0,0.08594093]
[1736954961459,0.0007543,99799.0,99782.0,0.08594093]
[1736954961674,0.023,99797.0,99782.0,0.00594093]
[1736954961893,0.023,99795.0,99782.0,0.00794093]
[1736954962122,0.1,99792.0,99782.0,0.00794093]
[1736954962352,0.0007543,99791.0,99782.0,0.00194093]
[1736954962568,1.13438162,99800.0,99782.0,0.00194093]
[1736954962782,0.00724,99799.0,99782.0,0.01094093]
[1736954964341,0.023,99796.0,99783.0,0.20143509]
[1736954964767,0.023,99796.0,99783.0,0.00100209]
[1736954965181,0.023,99796.0,99783.0,0.00400209]
[1736954965389,0.023,99796.0,99783.0,0.003]
[1736954965602,0.023,99796.0,99782.0,0.00294299]
[1736954965805,0.023,99796.0,99783.0,0.003]
[1736954966458,0.023,99796.0,99783.0,0.008]
[1736954966659,0.023,99796.0,99782.0,0.00294299]
[1736954966883,0.023,99796.0,99782.0,0.00194093]
[1736954967094,0.0007543,99795.0,99783.0,0.006]
[1736954967557,0.023,99794.0,99783.0,0.006]
[1736954967768,0.023,99794.0,99782.0,0.00194093]
[1736954967970,0.023,99796.0,99782.0,0.00494093]
[1736954968127,0.0007543,99795.0,99782.0,0.00894093]
[1736954968333,0.023,99796.0,99782.0,0.00594093]
[1736954968550,0.0007543,99797.0,99782.0,0.00594093]
[1736954968759,1.13438162,99800.0,99782.0,0.00594093]
[1736954968760,1.12272845,99800.0,99783.0,0.10722692]
[1736954968958,0.0008551,99796.0,99793.0,0.200413]
[1736954969157,1.12272845,99800.0,99799.0,0.10814406]
[1736954969158,1.00454845,99800.0,99799.0,0.10814406]
[1736954969310,0.61792071,99800.0,99799.0,1.81922624]
[1736954969522,0.61792071,99800.0,99799.0,4.26483962]
[1736954969732,0.61792071,99800.0,99799.0,3.73367362]
[1736954969946,0.05992,99801.0,99800.0,0.57854406]
[1736954970152,0.0008551,99831.0,99812.0,0.47852006]
[1736954970353,0.00019842,99861.0,99812.0,0.47852006]
[1736954970354,0.00019842,99861.0,99849.0,0.02814406]
[1736954970560,0.00019842,99861.0,99849.0,1.46173599]
[1736954970768,0.00019842,99861.0,99849.0,2.62007299]
[1736954970965,6.8e-07,99850.0,99849.0,2.52007299]
[1736954971230,6.8e-07,99850.0,99849.0,1.49870999]
[1736954971458,0.00019842,99861.0,99860.0,0.22842406]
[1736954971661,0.00069668,99861.0,99860.0,1.63958799]
[1736954972072,0.00069668,99861.0,99860.0,1.48958799]
[1736954972274,0.00069668,99861.0,99860.0,1.01603701]
[1736954972674,0.00069668,99861.0,99860.0,1.12026393]
[1736954973281,0.00069668,99861.0,99860.0,1.12126393]
[1736954973485,0.00069668,99861.0,99860.0,1.12026393]
[1736954973913,0.00069668,99861.0,99860.0,1.12126393]
[1736954974112,0.00069668,99861.0,99860.0,1.01703701]
[1736954974520,0.023,99871.0,99861.0,0.05529067]
[1736954974726,0.023,99863.0,99861.0,0.05529067]
[1736954975130,0.0237543,99863.0,99861.0,0.05529067]
[1736954975335,0.47825722,99862.0,99861.0,0.03129067]
[1736954975531,0.57750292,99862.0,99861.0,0.03129067]
[1736954975736,0.64935886,99862.0,99861.0,0.03129067]
[1736954976144,0.400648,99838.0,99816.0,0.02814406]
[1736954976349,0.023,99830.0,99813.0,0.02814406]
[1736954976544,0.023,99824.0,99812.0,0.01984092]
[1736954976790,0.023,99824.0,99809.0,0.00100178]
[1736954977007,0.200351,99825.0,99810.0,0.10422692]
[1736954977203,0.023,99818.0,99808.0,1.01603701]
[1736954977402,0.023,99818.0,99802.0,1.21643101]
[1736954977623,0.023,99822.0,99804.0,0.200392]
[1736954977955,0.17372438,99850.0,99802.0,1.21692927]
[1736954977956,0.07185594,99844.0,99805.0,0.10522876]
[1736954978090,0.00066424,99843.0,99812.0,0.02814406]
[1736954978290,0.023,99833.0,99819.0,0.004]
[1736954978749,0.023,99833.0,99815.0,0.00100173]
[1736954978953,0.018,99833.0,99816.0,0.200368]
[1736954979146,0.200328,99837.0,99816.0,0.200368]
[1736954979557,0.200314,99843.0,99817.0,0.10522865]
[1736954979756,0.200332,99835.0,99819.0,0.005]
[1736954980134,0.200322,99839.0,99817.0,0.200366]
[1736954980337,0.15,99843.0,99819.0,0.200362]
[1736954980541,0.200326,99837.0,99820.0,0.10522857]
[1736954980737,0.200339,99831.0,99820.0,0.00100165]
[1736954980913,0.200366,99818.0,99803.0,1.01603701]
[1736954981123,0.223366,99817.0,99816.0,0.003]
[1736954981569,0.200387,99807.0,99791.0,1.01603701]
[1736954981769,0.00066424,99815.0,99791.0,1.01603701]
[1736954982021,0.023,99810.0,99791.0,1.01603701]
[1736954982231,0.0229,99810.0,99799.0,0.00179466]
[1736954982404,0.0109813,99815.0,99799.0,0.00179466]
[1736954982575,0.00066424,99814.0,99799.0,0.00179466]
[1736954982774,0.201387,99807.0,99802.0,0.01349826]
[1736954982988,0.200387,99807.0,99802.0,0.00449826]
[1736954983393,0.200387,99807.0,99802.0,0.01349826]
[1736954983700,0.20105224,99806.0,99802.0,0.00449826]
[1736954983917,0.40144124,99806.0,99802.0,0.01349826]
[1736954984117,0.023,99803.0,99802.0,0.00949826]
[1736954984319,0.02366424,99803.0,99802.0,0.00949826]
[1736954984511,0.02366424,99803.0,99799.0,0.00179466]
[1736954984512,0.023,99797.0,99777.0,0.00100212]
[1736954984711,0.223407,99797.0,99782.0,0.00014942]
[1736954984914,0.023,99799.0,99782.0,0.00014942]
[1736954985122,0.00066424,99798.0,99782.0,0.00014942]
[1736954985335,0.20034,99830.0,99787.0,0.02814406]
[1736954985537,0.200355,99823.0,99802.0,0.03314406]
[1736954985748,0.1,99807.0,99802.0,0.005]
[1736954985963,0.023,99798.0,99782.0,0.00414942]
[1736954986160,0.023,99798.0,99782.0,0.01314942]
[1736954986403,0.023,99796.0,99782.0,0.01314942]
[1736954986608,0.023,99786.0,99782.0,0.00414942]
[1736954986807,0.00066424,99785.0,99782.0,0.00414942]
[1736954987053,0.023,99783.0,99782.0,0.00414942]
[1736954987420,0.20043,99785.0,99782.0,0.00014942]
[1736954987670,0.023,99784.0,99782.0,0.00014942]
[1736954987925,0.023,99783.0,99782.0,0.00014942]
[1736954988331,0.200391,99805.0,99782.0,0.20058542]
[1736954988669,0.1455,99811.0,99794.0,0.02814406]
[1736954988670,0.01096119,99807.0,99794.0,0.02814406]
[1736954988886,0.01096119,99807.0,99799.0,0.02814406]
[1736954989182,0.04616424,99811.0,99784.0,0.1409]
[1736954989183,0.023,99806.0,99786.0,0.02814406]
[1736954989427,0.023,99801.0,99784.0,0.1409]
[1736954989623,0.200397,99802.0,99784.0,0.1409]
[1736954990038,0.02366424,99801.0,99784.0,0.1409]
[1736954990215,0.200387,99807.0,99795.0,0.02814406]
[1736954990478,0.00066424,99806.0,99795.0,0.02814406]
[1736954990663,0.02366424,99810.0,99795.0,0.02814406]
[1736954990918,0.023,99808.0,99795.0,0.02814406]
[1736954991125,0.00066424,99807.0,99791.0,0.02814406]
[1736954991332,0.00066424,99807.0,99795.0,0.02814406]
[1736954991756,0.00066424,99807.0,99786.0,0.203428]
[1736954991981,0.00066424,99807.0,99799.0,0.003]
[1736954992187,0.00066424,99809.0,99799.0,0.003]
[1736954992398,0.00066424,99808.0,99796.0,0.02814406]
[1736954992604,0.023,99810.0,99796.0,0.02814406]
[1736954992825,0.00066424,99809.0,99796.0,0.02814406]
[1736954993428,0.00066424,99809.0,99795.0,0.003]
[1736954993634,0.023,99807.0,99795.0,0.003]
[1736954993818,0.023,99798.0,99795.0,0.003]
[1736954994118,0.023,99796.0,99795.0,0.003]
[1736954994370,0.023,99794.0,99782.0,0.00014942]
[1736954994544,0.023,99788.0,99782.0,0.00014942]
[1736954994749,0.023,99792.0,99782.0,0.00014942]
[1736954995161,0.023,99794.0,99782.0,0.00014942]
[1736954995310,0.08,99812.0,99795.0,0.004]
[1736954995524,0.00724,99824.0,99796.0,0.02814406]
[1736954995525,0.0477,99824.0,99796.0,0.02814406]
[1736954995721,0.0477,99824.0,99800.0,0.02814406]
[1736954995925,0.00066424,99823.0,99800.0,0.02814406]
[1736954996242,0.0477,99824.0,99806.0,0.200387]
[1736954996492,0.09047603,99832.0,99809.0,0.02814406]
[1736954996679,0.09047603,99832.0,99809.0,0.13337274]
[1736954996864,0.08,99832.0,99809.0,0.13337274]
[1736954997053,0.08,99832.0,99809.0,1.63337274]
[1736954997282,0.08,99832.0,99809.0,1.63237098]
[1736954997484,0.08,99832.0,99809.0,0.13237098]
[1736954997804,0.08,99832.0,99815.0,0.200369]
[1736954998098,0.023,99831.0,99811.0,0.02914582]
[1736954998319,0.023,99831.0,99812.0,0.30460192]
[1736954998551,0.023,99831.0,99817.0,0.200365]
[1736954999156,0.00022939,99830.0,99814.0,0.200372]
[1736954999359,0.00022939,99830.0,99813.0,0.20137576]
[1736954999560,0.00022939,99830.0,99813.0,0.30560268]
[1736954999736,0.00022939,99830.0,99815.0,0.002]
[1736954999737,0.023,99829.0,99815.0,0.002]
[1736954999985,0.023,99828.0,99815.0,0.002]
[1736955000187,0.00066424,99827.0,99815.0,0.002]
[1736955000392,0.1707,99816.0,99815.0,0.002]
[1736955000547,0.27559116,99816.0,99815.0,0.002]
[1736955000752,0.023,99815.0,99792.0,0.02814406]
[1736955000959,0.023,99804.0,99788.0,0.47843046]
[1736955001119,0.023,99802.0,99784.0,0.200431]
[1736955001324,0.023,99802.0,99789.0,0.02814406]
[1736955001536,0.00066424,99804.0,99789.0,0.02814406]
[1736955001771,0.10422692,99814.0,99781.0,0.02814406]
[1736955001772,0.200419,99791.0,99781.0,0.02814406]
[1736955001983,0.00066424,99798.0,99778.0,0.02814406]
[1736955002199,0.023,99789.0,99788.0,0.004]
[1736955002466,0.12789116,99789.0,99788.0,0.004]
[1736955002666,0.12789116,99789.0,99776.0,0.00179592]
[1736955002667,0.1,99785.0,99776.0,0.00179592]
[1736955002874,0.023,99781.0,99776.0,0.00179592]
[1736955003077,0.223446,99777.0,99776.0,0.00194534]
[1736955003295,0.42767292,99777.0,99776.0,0.00194534]
[1736955003502,0.32767292,99777.0,99776.0,0.00194534]
[1736955003935,0.32767292,99777.0,99776.0,0.00494534]
[1736955004139,0.72952886,99777.0,99776.0,0.00494534]
[1736955004342,0.200501,99750.0,99749.0,0.00179235]
[1736955004582,0.200485,99758.0,99749.0,0.00194179]
[1736955004583,0.200497,99752.0,99749.0,0.00194179]
[1736955004791,0.200485,99758.0,99749.0,0.00194179]
[1736955004997,0.200501,99750.0,99749.0,0.00194179]
[1736955005417,0.198901,99750.0,99749.0,0.00194179]
[1736955005871,0.37382792,99750.0,99749.0,0.00194179]
[1736955006076,0.52382792,99750.0,99749.0,0.00194179]
[1736955006282,0.52382792,99750.0,99749.0,0.00494179]
[1736955006720,0.52122715,99750.0,99749.0,0.00494179]
[1736955006925,0.77538309,99750.0,99749.0,0.01094179]
[1736955007146,0.80349539,99750.0,99749.0,0.00494179]
[1736955007351,0.350541,99730.0,99729.0,0.00179256]
[1736955007570,0.48496792,99730.0,99729.0,0.002291]
[1736955007789,0.58496792,99730.0,99729.0,0.002291]
[1736955008206,0.58496792,99730.0,99729.0,0.00049844]
[1736955008207,0.78582386,99730.0,99729.0,0.00049844]
[1736955008429,0.79702757,99730.0,99729.0,0.00049844]
[1736955008640,0.89098176,99730.0,99729.0,1e-08]
[1736955008850,0.200573,99714.0,99700.0,0.05337466]
[1736955009109,0.0954,99704.0,99703.0,0.02814406]
[1736955009316,0.00066424,99711.0,99703.0,0.02814406]
[1736955009526,0.0954,99728.0,99725.0,0.02814406]
[1736955009749,0.0954,99728.0,99706.0,0.15]
[1736955009750,0.30477592,99727.0,99721.0,0.02814406]
[1736955009973,0.200522,99740.0,99726.0,1.5]
[1736955010179,0.0954,99757.0,99745.0,0.02814406]
[1736955010395,0.0813,99771.0,99749.0,0.02814406]
[1736955010396,0.28176,99771.0,99749.0,0.02814406]
[1736955010602,0.20045,99776.0,99749.0,0.03214406]
[1736955010813,0.20044,99781.0,99749.0,1.68774647]
[1736955011024,0.01104567,99783.0,99749.0,1.68774647]
[1736955011025,0.01104567,99783.0,99749.0,1.93770598]
[1736955011237,0.0813,99791.0,99768.0,0.02814406]
[1736955011449,0.10422692,99790.0,99768.0,0.02814406]
[1736955011691,0.200422,99789.0,99768.0,0.02814406]
[1736955011910,0.10422692,99790.0,99768.0,0.02814406]
[1736955012126,0.200422,99789.0,99768.0,0.02814406]
[1736955012546,0.08179813,99791.0,99769.0,0.02814406]
[1736955012547,0.200437,99782.0,99769.0,0.02814406]
[1736955012759,0.17372438,99780.0,99755.0,0.02814406]
[1736955012969,0.023,99778.0,99768.0,0.004]
[1736955013179,0.200452,99775.0,99768.0,0.007]
[1736955013389,0.023,99773.0,99768.0,0.007]
[1736955013643,0.20042,99790.0,99768.0,0.004]
[1736955013841,0.10422692,99789.0,99768.0,0.004]
[1736955014046,0.200445,99778.0,99768.0,0.004]
[1736955014252,0.023,99775.0,99768.0,0.004]
[1736955014466,0.173,99769.0,99768.0,0.004]
[1736955014677,0.37262692,99769.0,99768.0,0.004]
[1736955015089,0.28442692,99769.0,99768.0,0.004]
[1736955015538,0.28442692,99769.0,99768.0,0.001]
[1736955015747,0.37982692,99769.0,99768.0,0.001]
[1736955015951,0.10422692,99769.0,99744.0,0.02814406]
[1736955016175,0.200451,99775.0,99749.0,0.02814406]
[1736955016176,0.0072,99774.0,99749.0,0.02814406]
[1736955016392,0.1431,99793.0,99758.0,0.0046]
[1736955016393,0.001,99769.0,99758.0,0.0046]
[1736955016596,0.001,99769.0,99767.0,0.02814406]
[1736955016850,0.002,99790.0,99769.0,0.02814406]
[1736955017062,0.10622692,99790.0,99769.0,0.02814406]
[1736955017272,0.10422692,99789.0,99756.0,0.0046]
[1736955017499,0.200463,99769.0,99752.0,0.02814406]
[1736955017709,0.10422692,99789.0,99763.0,0.02814406]
[1736955017925,0.0072,99788.0,99764.0,0.205073]
[1736955018135,0.10422692,99787.0,99764.0,0.0046]
[1736955018347,0.200439,99781.0,99760.0,0.02814406]
[1736955018550,0.0072,99788.0,99751.0,1.5]
[1736955018551,0.10422692,99780.0,99759.0,0.02814406]
[1736955018770,0.0072,99788.0,99763.0,0.02814406]
[1736955018985,0.10422692,99787.0,99763.0,0.02814406]
[1736955019192,0.0477,99793.0,99769.0,0.0046]
[1736955019406,0.20042,99790.0,99770.0,0.0046]
[1736955019624,0.38644405,99791.0,99770.0,0.03256324]
[1736955019831,0.30514405,99791.0,99777.0,0.02814406]
[1736955020066,0.023,99790.0,99777.0,0.02814406]
[1736955020276,0.10422692,99790.0,99762.0,0.02814406]
[1736955020478,0.10422692,99790.0,99766.0,0.02814406]
[1736955020479,0.023,99785.0,99766.0,0.02814406]
[1736955020693,0.023,99779.0,99768.0,0.02814406]
[1736955020907,0.200434,99783.0,99768.0,0.01914406]
[1736955021130,0.00049813,99791.0,99775.0,0.00441918]
[1736955021369,0.00049813,99791.0,99755.0,1.01603701]
[1736955021370,0.00049813,99791.0,99788.0,0.00441918]
[1736955021569,0.00049813,99791.0,99790.0,0.00441918]
[1736955021781,0.00059813,99791.0,99790.0,0.00441918]
[1736955022023,0.00059813,99791.0,99790.0,0.12779016]
[1736955022238,0.00059813,99791.0,99790.0,1.14382717]
[1736955022869,0.00059813,99791.0,99790.0,3.12618317]
[1736955023076,0.00059813,99791.0,99790.0,3.00151617]
[1736955023298,0.00059813,99791.0,99790.0,2.99063517]
[1736955023504,0.000855,99816.0,99790.0,2.99063517]
[1736955023711,0.00024939,99800.0,99799.0,0.01914406]
[1736955023933,0.00024939,99800.0,99799.0,0.12337098]
[1736955024142,0.00024939,99800.0,99799.0,1.08717616]
[1736955024356,0.00024939,99800.0,99799.0,0.66368816]
[1736955024595,0.00024939,99800.0,99799.0,0.58809916]
[1736955024810,0.00024939,99800.0,99799.0,2.08488316]
[1736955025186,0.00024939,99800.0,99799.0,0.02356324]
[1736955026063,0.00024939,99800.0,99799.0,0.02514406]
[1736955026270,0.00024939,99800.0,99799.0,0.006]
[1736955027145,0.00024939,99800.0,99795.0,0.01914406]
[1736955027361,0.00024939,99800.0,99795.0,0.02356324]
[1736955027565,0.00024939,99800.0,99799.0,0.00441918]
[1736955028640,0.00024939,99800.0,99799.0,0.00641918]
[1736955028856,0.00024939,99800.0,99799.0,0.002]
[1736955029094,0.00024939,99800.0,99799.0,0.005]
[1736955029304,0.00024939,99800.0,99799.0,0.008]
[1736955029932,0.00024939,99800.0,99799.0,0.005]
[1736955030149,0.00024939,99800.0,99799.0,0.008]
[1736955030369,0.00024939,99800.0,99799.0,0.003]
[1736955031231,0.00024939,99800.0,99799.0,0.008]
[1736955031448,0.00024939,99800.0,99799.0,0.003]
[1736955031870,0.00024939,99800.0,99799.0,0.008]
[1736955032739,0.12747631,99800.0,99799.0,0.008]
[1736955032969,0.32437631,99800.0,99799.0,0.008]
[1736955033581,0.200419,99791.0,99774.0,0.01914406]
[1736955033787,0.12722692,99790.0,99774.0,0.01914406]
[1736955033995,0.023,99788.0,99774.0,0.01914406]
[1736955034207,0.10422692,99790.0,99774.0,0.01914406]
[1736955034427,0.023,99789.0,99774.0,0.01914406]
[1736955034872,0.023,99787.0,99774.0,0.01914406]
[1736955035075,0.023,99787.0,99739.0,0.0771]
[1736955035076,0.023,99785.0,99767.0,0.01914406]
[1736955035283,0.200455,99773.0,99767.0,0.01914406]
[1736955035719,0.30465892,99784.0,99765.0,0.01914406]
[1736955035932,0.17379493,99780.0,99747.0,0.00441918]
[1736955036157,0.0718,99769.0,99747.0,0.00441918]
[1736955036383,0.200498,99752.0,99747.0,0.00441918]
[1736955036596,0.023,99767.0,99742.0,1.5]
[1736955036835,0.023,99765.0,99752.0,0.01914406]
[1736955037085,0.200451,99775.0,99767.0,0.004]
[1736955037285,0.0773,99779.0,99767.0,0.004]
[1736955037495,0.023,99769.0,99767.0,0.004]
[1736955037709,0.32769192,99768.0,99767.0,0.004]
[1736955038355,0.200467,99767.0,99753.0,0.01914406]
[1736955038580,0.00014933,99775.0,99757.0,0.00441918]
[1736955038793,0.20060133,99775.0,99758.0,0.00441918]
[1736955039010,0.02314933,99775.0,99759.0,0.01914406]
[1736955039398,0.400906,99774.0,99759.0,0.01914406]
[1736955039643,0.200453,99774.0,99767.0,0.001]
[1736955039849,0.00014933,99775.0,99767.0,0.001]
[1736955040060,0.00014933,99775.0,99769.0,0.00441918]
[1736955040270,0.00014933,99775.0,99767.0,0.01914406]
[1736955040271,0.00014933,99775.0,99774.0,0.22401624]
[1736955040494,0.00014933,99775.0,99774.0,1.56445224]
[1736955040705,0.00014933,99775.0,99774.0,0.75604924]
[1736955041088,0.00214933,99775.0,99774.0,0.86027616]
[1736955041291,0.00014933,99775.0,99774.0,1.01027616]
[1736955041712,0.00114933,99775.0,99774.0,1.01927616]
[1736955041922,0.00114933,99775.0,99774.0,0.02814406]
[1736955041923,0.00097779,99775.0,99774.0,0.02814406]
[1736955042146,0.200414,99794.0,99755.0,0.01914406]
[1736955042147,0.23238043,99788.0,99755.0,0.01914406]
[1736955042414,0.17150414,99774.0,99755.0,0.00049813]
[1736955042590,0.15,99772.0,99755.0,0.00049813]
[1736955042799,0.10422692,99771.0,99755.0,0.00049813]
[1736955043025,0.200476,99763.0,99755.0,0.00049813]
[1736955043236,0.15,99770.0,99755.0,0.00049813]
[1736955043437,0.15,99770.0,99755.0,0.00149813]
[1736955043438,0.20047,99766.0,99755.0,0.00149813]
[1736955044076,0.200478,99762.0,99755.0,0.00149813]
[1736955044275,0.10422692,99765.0,99755.0,0.00149813]
[1736955044486,0.023,99763.0,99755.0,0.00149813]
[1736955044713,0.0110151,99774.0,99755.0,0.00149813]
[1736955044930,0.15,99772.0,99755.0,0.00149813]
[1736955045116,0.25422692,99772.0,99755.0,0.00149813]
[1736955045331,0.003,99762.0,99757.0,0.00441918]
[1736955045577,0.200468,99767.0,99755.0,0.00229384]
[1736955045787,0.15,99775.0,99755.0,0.00429384]
[1736955045788,0.180579,99761.0,99755.0,0.00429384]
[1736955045939,0.12722692,99760.0,99755.0,0.00429384]
[1736955046155,0.15,99756.0,99755.0,0.00229384]
[1736955046367,0.27722692,99756.0,99755.0,0.00229384]
[1736955047173,0.27722692,99756.0,99755.0,0.00329384]
[1736955048048,0.28022692,99756.0,99755.0,0.00329384]
[1736955048283,0.37580774,99756.0,99755.0,0.00329384]
[1736955048491,0.37580774,99756.0,99755.0,0.00229384]
[1736955048701,0.45666368,99756.0,99755.0,0.00229384]
[1736955048938,0.46266368,99756.0,99755.0,0.00329384]
[1736955049530,0.46366368,99756.0,99755.0,0.00329384]
[1736955049688,0.46366368,99756.0,99700.0,0.05337466]
[1736955049689,0.023,99737.0,99706.0,0.00441918]
[1736955049880,0.09558082,99741.0,99710.0,0.01914406]
[1736955049881,0.023,99734.0,99710.0,0.01914406]
[1736955050079,0.200555,99723.0,99713.0,0.01914406]
[1736955050280,0.25422692,99733.0,99713.0,0.01914406]
[1736955050281,0.15,99732.0,99713.0,0.01914406]
[1736955050553,0.200553,99724.0,99713.0,0.01914406]
[1736955050689,0.023,99724.0,99713.0,0.01914406]
[1736955050888,0.023,99724.0,99712.0,0.02356324]
[1736955051145,0.200565,99719.0,99712.0,0.01914406]
[1736955051373,0.200555,99723.0,99712.0,0.00456851]
[1736955051568,0.023,99724.0,99712.0,0.02371257]
[1736955051777,0.10422692,99731.0,99716.0,0.00441918]
[1736955052196,0.003,99732.0,99721.0,0.00441918]
[1736955052727,0.023,99730.0,99716.0,1.50441918]
[1736955052929,0.200574,99714.0,99712.0,0.00014933]
[1736955053180,0.200574,99714.0,99712.0,0.00114933]
[1736955053380,0.15,99721.0,99712.0,0.00114933]
[1736955053593,0.15,99721.0,99712.0,0.00014933]
[1736955054003,0.200561,99720.0,99712.0,0.00014933]
[1736955054354,0.15,99721.0,99712.0,0.00014933]
[1736955054355,0.200563,99719.0,99712.0,0.00014933]
[1736955054557,0.15,99721.0,99712.0,0.00014933]
[1736955054773,0.15,99728.0,99713.0,0.00441918]
[1736955055010,0.15,99728.0,99718.0,0.00441918]
[1736955055873,0.200547,99727.0,99718.0,0.00441918]
[1736955056470,0.15,99730.0,99718.0,0.00541918]
[1736955056685,0.200531,99735.0,99720.0,0.00441918]
[1736955056898,0.240604,99779.0,99733.0,0.00441918]
[1736955056899,0.200515,99743.0,99733.0,0.00441918]
[1736955057105,0.0825,99756.0,99733.0,0.00441918]
[1736955057106,0.200522,99740.0,99733.0,0.00441918]
[1736955057316,0.0072,99753.0,99733.0,0.00441918]
[1736955057522,0.200508,99747.0,99733.0,0.00441918]
[1736955057959,0.200516,99743.0,99733.0,0.00441918]
[1736955058173,0.205516,99743.0,99733.0,0.00441918]
[1736955058808,0.0072,99755.0,99720.0,0.200561]
[1736955058809,0.05233533,99756.0,99741.0,0.00441918]
[1736955059036,0.0080554,99761.0,99746.0,0.00441918]
[1736955059250,0.200483,99759.0,99748.0,0.00441918]
[1736955059477,0.15,99758.0,99748.0,0.00441918]
[1736955059705,0.15,99756.0,99748.0,0.00441918]
[1736955059912,0.152,99756.0,99748.0,0.00441918]
[1736955060135,0.002,99756.0,99748.0,0.00441918]
[1736955060360,0.00249804,99756.0,99753.0,0.00441918]
[1736955060564,0.2005,99751.0,99747.0,0.01914406]
[1736955060773,0.00249804,99756.0,99747.0,0.01914406]
[1736955060975,0.00249804,99756.0,99720.0,0.01970717]
[1736955060976,0.15,99749.0,99748.0,0.001]
[1736955061191,0.45472992,99749.0,99748.0,0.001]
[1736955061407,0.200507,99747.0,99713.0,1.01603701]
[1736955061622,0.200492,99755.0,99711.0,0.20237518]
[1736955061623,0.023,99731.0,99711.0,0.00179718]
[1736955061834,0.200553,99724.0,99711.0,0.00179718]
[1736955062044,0.023,99713.0,99711.0,0.00179718]
[1736955062474,0.15,99714.0,99711.0,0.00179718]
[1736955063133,0.28304,99731.0,99712.0,0.00194567]
[1736955063134,0.15,99713.0,99712.0,0.00194567]
[1736955063336,0.15,99713.0,99712.0,0.00294567]
[1736955063970,0.27722692,99713.0,99712.0,0.00694567]
[1736955064180,0.15,99713.0,99712.0,0.00694567]
[1736955064393,0.15,99713.0,99712.0,0.00294567]
[1736955064601,0.15,99713.0,99712.0,0.00194567]
[1736955064822,0.15,99713.0,99712.0,0.00294567]
[1736955065239,0.15,99713.0,99712.0,0.00194567]
[1736955066084,0.173,99713.0,99712.0,0.00194567]
[1736955066941,0.35469732,99713.0,99712.0,0.00194567]
[1736955067162,0.35469732,99713.0,99700.0,0.05337466]
[1736955067163,0.373599,99701.0,99700.0,0.05337466]
[1736955067365,0.67782592,99701.0,99700.0,0.0309286]
[1736955067571,0.1,99696.0,99680.0,0.05537752]
[1736955067800,0.273,99700.0,99680.0,0.05537752]